[Event "Late-Titled-Tuesday-Blitz-April-02-2024"]
[Site "Chess.com"]
[Date "2024.04.02"]
[Round "2"]
[White "Yaacovn"]
[Black "RantomOpening"]
[Result "1-0"]
[WhiteElo "2857"]
[BlackElo "2570"]
[TimeControl "180+1"]
[EndTime "14:15:11 PDT"]
[Termination "Yaacovn won by resignation"]

1. d4 {[%clk 0:03:00.7]} 1... d5 {[%clk 0:01:59.6]} 2. Nf3 {[%clk 0:02:56.4]}
2... e6 {[%clk 0:02:00]} 3. Bf4 {[%clk 0:02:56.1]} 3... Nf6 {[%clk 0:01:59.5]}
4. e3 {[%clk 0:02:55.5]} 4... Bd6 {[%clk 0:02:00.1]} 5. Bg3 {[%clk 0:02:53.8]}
5... O-O {[%clk 0:02:00.4]} 6. c4 {[%clk 0:02:54.3]} 6... c5 {[%clk 0:01:58.6]}
7. Nc3 {[%clk 0:02:54.2]} 7... b6 {[%clk 0:01:54.9]} 8. Rc1 {[%clk 0:02:50.7]}
8... Bb7 {[%clk 0:01:54.7]} 9. cxd5 {[%clk 0:02:44.9]} 9... Nxd5 {[%clk
0:01:53.1]} 10. Nxd5 {[%clk 0:02:44.8]} 10... Bxd5 {[%clk 0:01:53]} 11. Bc4
{[%clk 0:02:41.1]} 11... Bxc4 {[%clk 0:01:51.2]} 12. Rxc4 {[%clk 0:02:40.9]}
12... Bxg3 {[%clk 0:01:50.6]} 13. hxg3 {[%clk 0:02:40.7]} 13... Qd5 {[%clk
0:01:49.7]} 14. Qc2 {[%clk 0:02:39.7]} 14... h6 {[%clk 0:01:48.2]} 15. dxc5
{[%clk 0:02:38.7]} 15... Rc8 {[%clk 0:01:44.6]} 16. O-O {[%clk 0:02:33.4]} 16...
Rxc5 {[%clk 0:01:44.1]} 17. Rxc5 {[%clk 0:02:32.5]} 17... Qxc5 {[%clk
0:01:44.2]} 18. Qxc5 {[%clk 0:02:27.1]} 18... bxc5 {[%clk 0:01:45.1]} 19. Rd1
{[%clk 0:02:25.3]} 19... Nc6 {[%clk 0:01:41.2]} 20. Rd7 {[%clk 0:02:22.2]} 20...
Rb8 {[%clk 0:01:31.3]} 21. Rc7 {[%clk 0:02:20.6]} 21... Nb4 {[%clk 0:01:26.9]}
22. Rxa7 {[%clk 0:02:18.2]} 22... Nd3 {[%clk 0:01:25.2]} 23. b3 {[%clk
0:02:16.8]} 23... c4 {[%clk 0:01:23.7]} 24. Nd4 {[%clk 0:02:06.1]} 24... e5
{[%clk 0:01:23.4]} 25. Nc6 {[%clk 0:02:01.8]} 25... Rb6 {[%clk 0:01:21.9]} 26.
Ne7+ {[%clk 0:02:01.5]} 26... Kh7 {[%clk 0:01:15]} 27. Nd5 {[%clk 0:02:00.2]}
27... cxb3 {[%clk 0:01:13.9]} 28. axb3 {[%clk 0:01:58]} 28... Rxb3 {[%clk
0:01:14.8]} 29. Rxf7 {[%clk 0:01:57.4]} 29... Kg8 {[%clk 0:01:07.9]} 30. Rf5
{[%clk 0:01:54]} 30... g6 {[%clk 0:01:02.6]} 31. Rf6 {[%clk 0:01:52.2]} 31...
Kg7 {[%clk 0:01:02.1]} 32. f3 {[%clk 0:01:48.4]} 32... Nb4 {[%clk 0:00:46.7]}
33. Rb6 {[%clk 0:01:46.1]} 33... Rb1+ {[%clk 0:00:40.7]} 34. Kh2 {[%clk
0:01:45.8]} 34... Nxd5 {[%clk 0:00:41.2]} 35. Rxb1 {[%clk 0:01:45.3]} 35... Nxe3
{[%clk 0:00:42.1]} 36. g4 {[%clk 0:01:44.2]} 36... Kf6 {[%clk 0:00:41.8]} 37.
Kg3 {[%clk 0:01:43.7]} 37... Kg5 {[%clk 0:00:41.1]} 38. Rb5 {[%clk 0:01:42.8]}
38... Nc4 {[%clk 0:00:41.2]} 39. Rc5 {[%clk 0:01:40.1]} 1-0

[Event "Late-Titled-Tuesday-Blitz-April-02-2024"]
[Site "Chess.com"]
[Date "2024.04.02"]
[Round "2"]
[White "Bob_2004"]
[Black "bilelou"]
[Result "0-1"]
[WhiteElo "2348"]
[BlackElo "2637"]
[TimeControl "180+1"]
[EndTime "14:15:18 PDT"]
[Termination "bilelou won on time"]

1. d4 {[%clk 0:02:52.4]} 1... e6 {[%clk 0:02:59.7]} 2. c4 {[%clk 0:02:52.3]}
2... b6 {[%clk 0:03:00.6]} 3. a3 {[%clk 0:02:50]} 3... g6 {[%clk 0:03:01]} 4.
Nc3 {[%clk 0:02:48.2]} 4... Bg7 {[%clk 0:03:01.9]} 5. d5 {[%clk 0:02:45.4]} 5...
Bb7 {[%clk 0:03:02.8]} 6. g3 {[%clk 0:02:40.9]} 6... d6 {[%clk 0:03:02.9]} 7.
Bg2 {[%clk 0:02:40.6]} 7... Bxc3+ {[%clk 0:03:03.3]} 8. bxc3 {[%clk 0:02:40.4]}
8... e5 {[%clk 0:03:04.2]} 9. Nf3 {[%clk 0:02:38.6]} 9... Nd7 {[%clk 0:03:04.1]}
10. O-O {[%clk 0:02:35.2]} 10... Ngf6 {[%clk 0:03:03.8]} 11. Bh6 {[%clk
0:02:32.4]} 11... Qe7 {[%clk 0:03:03.8]} 12. Bh3 {[%clk 0:02:15]} 12... O-O-O
{[%clk 0:02:47.3]} 13. a4 {[%clk 0:02:11]} 13... a5 {[%clk 0:02:44.3]} 14. c5
{[%clk 0:02:02.2]} 14... dxc5 {[%clk 0:02:42.4]} 15. c4 {[%clk 0:01:47.9]} 15...
Ne4 {[%clk 0:02:37]} 16. Nd2 {[%clk 0:01:16.6]} 16... Nd6 {[%clk 0:02:36.4]} 17.
e4 {[%clk 0:01:00.5]} 17... f6 {[%clk 0:02:36.5]} 18. f4 {[%clk 0:00:32.8]}
18... Kb8 {[%clk 0:02:36.4]} 19. Be6 {[%clk 0:00:26.3]} 19... Nf8 {[%clk
0:02:34.2]} 20. f5 {[%clk 0:00:24.2]} 20... Nxe6 {[%clk 0:02:22.5]} 21. fxe6
{[%clk 0:00:20.2]} 21... f5 {[%clk 0:02:22.6]} 22. exf5 {[%clk 0:00:17.4]} 22...
Nxf5 {[%clk 0:02:11.2]} 23. Rxf5 {[%clk 0:00:13.8]} 23... gxf5 {[%clk 0:02:11]}
24. Qh5 {[%clk 0:00:13.7]} 24... f4 {[%clk 0:02:09.9]} 25. Bg5 {[%clk
0:00:12.5]} 25... Qg7 {[%clk 0:02:09.8]} 26. Bxd8 {[%clk 0:00:11.8]} 26... Rxd8
{[%clk 0:02:08.5]} 27. Rf1 {[%clk 0:00:09.2]} 27... c6 {[%clk 0:02:05.4]} 28.
Qf7 {[%clk 0:00:05]} 28... Qxf7 {[%clk 0:02:05.1]} 29. exf7 {[%clk 0:00:05.1]}
29... cxd5 {[%clk 0:02:04.6]} 30. cxd5 {[%clk 0:00:04.6]} 30... Bxd5 {[%clk
0:02:04.3]} 31. gxf4 {[%clk 0:00:04.4]} 31... Bxf7 {[%clk 0:02:04]} 32. fxe5
{[%clk 0:00:03.8]} 32... Be6 {[%clk 0:01:58.8]} 33. Ne4 {[%clk 0:00:02.3]} 33...
Bb3 {[%clk 0:01:58]} 0-1

[Event "Late-Titled-Tuesday-Blitz-April-02-2024"]
[Site "Chess.com"]
[Date "2024.04.02"]
[Round "2"]
[White "prime-morty"]
[Black "ViIIagra"]
[Result "1-0"]
[WhiteElo "2599"]
[BlackElo "2892"]
[TimeControl "180+1"]
[EndTime "14:15:19 PDT"]
[Termination "prime-morty won by resignation"]

1. c4 {[%clk 0:03:00.9]} 1... d6 {[%clk 0:02:54.6]} 2. Nc3 {[%clk 0:02:59.5]}
2... e5 {[%clk 0:02:54.4]} 3. g3 {[%clk 0:02:59.9]} 3... f5 {[%clk 0:02:54.5]}
4. d4 {[%clk 0:02:57.3]} 4... Be7 {[%clk 0:02:53.2]} 5. dxe5 {[%clk 0:02:52.8]}
5... dxe5 {[%clk 0:02:54.1]} 6. Qxd8+ {[%clk 0:02:52.8]} 6... Bxd8 {[%clk
0:02:55]} 7. e4 {[%clk 0:02:48.1]} 7... Nf6 {[%clk 0:02:55.2]} 8. Bh3 {[%clk
0:02:41.1]} 8... Nc6 {[%clk 0:02:50.1]} 9. Be3 {[%clk 0:02:35.3]} 9... fxe4
{[%clk 0:02:37.4]} 10. Bxc8 {[%clk 0:02:34.1]} 10... Rxc8 {[%clk 0:02:38.3]} 11.
O-O-O {[%clk 0:02:29.1]} 11... Be7 {[%clk 0:02:36]} 12. Bg5 {[%clk 0:02:25.9]}
12... Na5 {[%clk 0:02:05.3]} 13. b3 {[%clk 0:02:20.7]} 13... O-O {[%clk
0:01:27.2]} 14. Bxf6 {[%clk 0:02:14.5]} 14... gxf6 {[%clk 0:01:28.1]} 15. Nxe4
{[%clk 0:02:12.3]} 15... c6 {[%clk 0:01:15.9]} 16. Nf3 {[%clk 0:02:08.3]} 16...
b5 {[%clk 0:01:15.9]} 17. c5 {[%clk 0:02:05]} 17... Nb7 {[%clk 0:01:00.8]} 18.
b4 {[%clk 0:01:55.9]} 18... f5 {[%clk 0:01:01.2]} 19. Nc3 {[%clk 0:01:45.5]}
19... e4 {[%clk 0:01:00.7]} 20. Rd7 {[%clk 0:01:45]} 20... Bf6 {[%clk
0:01:01.1]} 21. Nd4 {[%clk 0:01:30.5]} 21... Rfd8 {[%clk 0:00:57.2]} 22. Rxd8+
{[%clk 0:01:26.8]} 22... Rxd8 {[%clk 0:00:49.2]} 23. Nxc6 {[%clk 0:01:23.4]}
23... Rc8 {[%clk 0:00:46.8]} 24. Nxa7 {[%clk 0:01:14.2]} 24... Rd8 {[%clk
0:00:29.6]} 25. Ncxb5 {[%clk 0:01:11.3]} 25... Bg5+ {[%clk 0:00:30.2]} 26. Kb1
{[%clk 0:01:09.7]} 26... Rd2 {[%clk 0:00:30.5]} 27. c6 {[%clk 0:01:08.4]} 1-0

[Event "Late-Titled-Tuesday-Blitz-April-02-2024"]
[Site "Chess.com"]
[Date "2024.04.02"]
[Round "2"]
[White "DreamsAreFake"]
[Black "santosalberto1987"]
[Result "1-0"]
[WhiteElo "2746"]
[BlackElo "2501"]
[TimeControl "180+1"]
[EndTime "14:15:26 PDT"]
[Termination "DreamsAreFake won on time"]

1. Nf3 {[%clk 0:02:58.3]} 1... d5 {[%clk 0:02:45.8]} 2. g3 {[%clk 0:02:57.1]}
2... Nf6 {[%clk 0:02:45.8]} 3. Bg2 {[%clk 0:02:57.5]} 3... e6 {[%clk 0:02:42.3]}
4. O-O {[%clk 0:02:58.1]} 4... Be7 {[%clk 0:02:42.5]} 5. b3 {[%clk 0:02:58.7]}
5... O-O {[%clk 0:02:42.3]} 6. Bb2 {[%clk 0:02:59.4]} 6... b6 {[%clk 0:02:42.6]}
7. d3 {[%clk 0:02:59.9]} 7... Bb7 {[%clk 0:02:42.8]} 8. c4 {[%clk 0:02:59.6]}
8... c5 {[%clk 0:02:41.3]} 9. cxd5 {[%clk 0:02:59.7]} 9... Nxd5 {[%clk
0:02:40.4]} 10. Nc3 {[%clk 0:02:59.3]} 10... Bf6 {[%clk 0:02:38.9]} 11. Rc1
{[%clk 0:02:59.5]} 11... Nc6 {[%clk 0:02:38.4]} 12. Qd2 {[%clk 0:02:59.3]} 12...
Nd4 {[%clk 0:02:35.7]} 13. Nxd4 {[%clk 0:02:58.5]} 13... Bxd4 {[%clk 0:02:34.3]}
14. Nxd5 {[%clk 0:02:58.6]} 14... Bxd5 {[%clk 0:02:34.1]} 15. Bxd4 {[%clk
0:02:58.5]} 15... cxd4 {[%clk 0:02:18.3]} 16. Bxd5 {[%clk 0:02:56.6]} 16... Qxd5
{[%clk 0:02:18.1]} 17. Rc7 {[%clk 0:02:54.3]} 17... a5 {[%clk 0:01:39.2]} 18.
Rfc1 {[%clk 0:02:51.5]} 18... a4 {[%clk 0:01:39.5]} 19. b4 {[%clk 0:02:44.6]}
19... a3 {[%clk 0:01:39.5]} 20. R1c4 {[%clk 0:02:40.3]} 20... e5 {[%clk
0:01:34.8]} 21. f3 {[%clk 0:02:37.7]} 21... Ra4 {[%clk 0:01:33.6]} 22. Qc2
{[%clk 0:02:36.3]} 22... Raa8 {[%clk 0:01:25.9]} 23. Qb3 {[%clk 0:02:34.5]}
23... b5 {[%clk 0:01:23.9]} 24. Rc3 {[%clk 0:02:29.4]} 24... Qxb3 {[%clk
0:00:54.3]} 25. Rxb3 {[%clk 0:02:30.3]} 25... f6 {[%clk 0:00:44.2]} 26. Rc5
{[%clk 0:02:16.8]} 26... Rfb8 {[%clk 0:00:42.3]} 27. Kf2 {[%clk 0:02:14.7]}
27... h5 {[%clk 0:00:38.4]} 28. f4 {[%clk 0:02:14.3]} 28... exf4 {[%clk
0:00:33]} 29. gxf4 {[%clk 0:02:15.2]} 29... h4 {[%clk 0:00:31.3]} 30. Ke1 {[%clk
0:02:09.4]} 30... Re8 {[%clk 0:00:16.1]} 31. Rxb5 {[%clk 0:02:09.2]} 31... Re3
{[%clk 0:00:15.7]} 32. Rc5 {[%clk 0:02:05.9]} 32... Rh3 {[%clk 0:00:13.7]} 33.
b5 {[%clk 0:01:58.8]} 33... Rxh2 {[%clk 0:00:13.8]} 34. b6 {[%clk 0:01:58.7]}
34... Rh1+ {[%clk 0:00:13.1]} 35. Kf2 {[%clk 0:01:58.2]} 35... Ra1 {[%clk
0:00:01.3]} 36. b7 {[%clk 0:01:58.5]} 36... Rb8 {[%clk 0:00:01.4]} 37. Rc8+
{[%clk 0:01:58.9]} 1-0

[Event "Late-Titled-Tuesday-Blitz-April-02-2024"]
[Site "Chess.com"]
[Date "2024.04.02"]
[Round "2"]
[White "profedechess93"]
[Black "Groetzi"]
[Result "1-0"]
[WhiteElo "2663"]
[BlackElo "2359"]
[TimeControl "180+1"]
[EndTime "14:15:26 PDT"]
[Termination "profedechess93 won by resignation"]

1. e4 {[%clk 0:03:00.1]} 1... d5 {[%clk 0:02:54.4]} 2. exd5 {[%clk 0:02:59.6]}
2... Qxd5 {[%clk 0:02:55.3]} 3. Nc3 {[%clk 0:02:59.6]} 3... Qd6 {[%clk
0:02:55.5]} 4. d4 {[%clk 0:03:00.1]} 4... c6 {[%clk 0:02:55.7]} 5. Nf3 {[%clk
0:03:00.8]} 5... Nf6 {[%clk 0:02:56]} 6. Ne5 {[%clk 0:03:01.2]} 6... Nbd7 {[%clk
0:02:46.5]} 7. f4 {[%clk 0:03:00.8]} 7... e6 {[%clk 0:02:43.8]} 8. g4 {[%clk
0:02:53.4]} 8... Be7 {[%clk 0:02:37]} 9. g5 {[%clk 0:02:51.7]} 9... Nd5 {[%clk
0:02:36.6]} 10. Ne4 {[%clk 0:02:51.3]} 10... Qc7 {[%clk 0:02:30.5]} 11. c4
{[%clk 0:02:47.5]} 11... N5b6 {[%clk 0:02:29.1]} 12. c5 {[%clk 0:02:45.1]} 12...
Nd5 {[%clk 0:02:27]} 13. Bg2 {[%clk 0:02:38.7]} 13... h6 {[%clk 0:02:23]} 14.
Qh5 {[%clk 0:02:13.4]} 14... Nxe5 {[%clk 0:01:52.7]} 15. fxe5 {[%clk 0:02:14.3]}
15... g6 {[%clk 0:01:53.2]} 16. Qf3 {[%clk 0:02:06.9]} 16... h5 {[%clk
0:01:46.3]} 17. O-O {[%clk 0:02:06.2]} 17... O-O {[%clk 0:01:40.8]} 18. Qh3
{[%clk 0:01:56.1]} 18... b6 {[%clk 0:01:29.8]} 19. Nf6+ {[%clk 0:01:51.6]} 19...
Kg7 {[%clk 0:01:25.2]} 20. Nxh5+ {[%clk 0:01:45.4]} 20... gxh5 {[%clk
0:01:26.1]} 21. Qxh5 {[%clk 0:01:45.5]} 21... Bd8 {[%clk 0:01:07.8]} 22. Qh6+
{[%clk 0:01:17.8]} 22... Kg8 {[%clk 0:01:06.6]} 23. Be4 {[%clk 0:01:18.3]} 23...
f5 {[%clk 0:00:56.5]} 24. gxf6 {[%clk 0:01:11.8]} 24... Nxf6 {[%clk 0:00:51.5]}
25. exf6 {[%clk 0:01:07]} 25... Rxf6 {[%clk 0:00:52.4]} 26. Rxf6 {[%clk
0:01:00.4]} 26... Bxf6 {[%clk 0:00:52.9]} 27. Qxf6 {[%clk 0:00:57.5]} 1-0

[Event "Late-Titled-Tuesday-Blitz-April-02-2024"]
[Site "Chess.com"]
[Date "2024.04.02"]
[Round "2"]
[White "Ahmadalrahely9999"]
[Black "zsizsi99"]
[Result "0-1"]
[WhiteElo "2247"]
[BlackElo "2501"]
[TimeControl "180+1"]
[EndTime "14:15:26 PDT"]
[Termination "zsizsi99 won by resignation"]

1. e4 {[%clk 0:03:00.9]} 1... c5 {[%clk 0:02:59.6]} 2. Nf3 {[%clk 0:02:59.9]}
2... Nc6 {[%clk 0:03:00.3]} 3. Bb5 {[%clk 0:02:59.2]} 3... d6 {[%clk 0:03:00.1]}
4. O-O {[%clk 0:02:58]} 4... Bd7 {[%clk 0:03:00.5]} 5. c3 {[%clk 0:02:57.1]}
5... a6 {[%clk 0:02:58.4]} 6. Ba4 {[%clk 0:02:56.1]} 6... b5 {[%clk 0:02:54]} 7.
Bc2 {[%clk 0:02:54.5]} 7... Bg4 {[%clk 0:02:53.4]} 8. h3 {[%clk 0:02:52.2]} 8...
Bxf3 {[%clk 0:02:53.1]} 9. Qxf3 {[%clk 0:02:53.1]} 9... g6 {[%clk 0:02:51.5]}
10. d3 {[%clk 0:02:46.4]} 10... Bg7 {[%clk 0:02:51.6]} 11. Qe2 {[%clk
0:02:38.1]} 11... e5 {[%clk 0:02:51.2]} 12. Nd2 {[%clk 0:02:33.9]} 12... Nge7
{[%clk 0:02:50]} 13. a4 {[%clk 0:02:30.8]} 13... O-O {[%clk 0:02:48.3]} 14. f4
{[%clk 0:02:05]} 14... exf4 {[%clk 0:02:47]} 15. Nf3 {[%clk 0:02:04.8]} 15... d5
{[%clk 0:02:45.8]} 16. Bxf4 {[%clk 0:02:01.2]} 16... dxe4 {[%clk 0:02:12.8]} 17.
dxe4 {[%clk 0:02:02.1]} 17... b4 {[%clk 0:02:10]} 18. Rad1 {[%clk 0:01:52.2]}
18... Qa5 {[%clk 0:02:09.9]} 19. cxb4 {[%clk 0:01:25.6]} 19... Qxb4 {[%clk
0:02:08.8]} 20. b3 {[%clk 0:01:18.6]} 20... Nd4 {[%clk 0:02:03]} 21. Nxd4 {[%clk
0:01:17.8]} 21... cxd4 {[%clk 0:02:03.2]} 22. e5 {[%clk 0:00:54.2]} 22... Nd5
{[%clk 0:02:02.4]} 23. Bd2 {[%clk 0:00:49.2]} 23... Qc5 {[%clk 0:01:54.1]} 24.
Bd3 {[%clk 0:00:36.1]} 24... Nc3 {[%clk 0:01:54.2]} 25. Bxc3 {[%clk 0:00:28.3]}
25... dxc3+ {[%clk 0:01:54.8]} 26. Kh1 {[%clk 0:00:25.3]} 26... Qxe5 {[%clk
0:01:47.5]} 27. Qc2 {[%clk 0:00:22.6]} 27... a5 {[%clk 0:01:37.2]} 28. Bc4
{[%clk 0:00:20.5]} 28... Ra7 {[%clk 0:01:30.8]} 29. Rfe1 {[%clk 0:00:16.1]}
29... Qg3 {[%clk 0:01:29.7]} 30. Rd3 {[%clk 0:00:15]} 30... Qxe1+ {[%clk
0:01:28.7]} 0-1

[Event "Late-Titled-Tuesday-Blitz-April-02-2024"]
[Site "Chess.com"]
[Date "2024.04.02"]
[Round "2"]
[White "ExtremeLearner"]
[Black "temus_galaktionov"]
[Result "0-1"]
[WhiteElo "2563"]
[BlackElo "2848"]
[TimeControl "180+1"]
[EndTime "14:15:27 PDT"]
[Termination "temus_galaktionov won by resignation"]

1. e4 {[%clk 0:02:50.5]} 1... c6 {[%clk 0:03:00.9]} 2. d4 {[%clk 0:02:47.5]}
2... g6 {[%clk 0:03:01.8]} 3. Nf3 {[%clk 0:02:44.5]} 3... Bg7 {[%clk 0:03:02.2]}
4. Nc3 {[%clk 0:02:40.2]} 4... d6 {[%clk 0:03:00.4]} 5. Be2 {[%clk 0:02:39.4]}
5... Nd7 {[%clk 0:02:59.5]} 6. O-O {[%clk 0:02:39.7]} 6... e5 {[%clk 0:02:59.9]}
7. Re1 {[%clk 0:02:38.9]} 7... Ngf6 {[%clk 0:02:59.2]} 8. Be3 {[%clk 0:02:35.5]}
8... O-O {[%clk 0:02:58.7]} 9. h3 {[%clk 0:02:34.1]} 9... Qe7 {[%clk 0:02:58.4]}
10. dxe5 {[%clk 0:02:30.6]} 10... dxe5 {[%clk 0:02:59.3]} 11. Qd2 {[%clk
0:02:21.1]} 11... Nc5 {[%clk 0:02:57.6]} 12. Bxc5 {[%clk 0:02:14.7]} 12... Qxc5
{[%clk 0:02:58.5]} 13. Rad1 {[%clk 0:02:14.5]} 13... Be6 {[%clk 0:02:26.9]} 14.
Qd6 {[%clk 0:02:11.7]} 14... Qxd6 {[%clk 0:02:27]} 15. Rxd6 {[%clk 0:02:12.6]}
15... Ne8 {[%clk 0:02:27.2]} 16. Rd2 {[%clk 0:02:02.4]} 16... h6 {[%clk
0:02:22.3]} 17. Red1 {[%clk 0:02:00.8]} 17... Nc7 {[%clk 0:02:21.6]} 18. a4
{[%clk 0:01:57.2]} 18... Rfe8 {[%clk 0:02:17.7]} 19. Ne1 {[%clk 0:01:43.2]}
19... Bf8 {[%clk 0:02:16.5]} 20. Nd3 {[%clk 0:01:43.6]} 20... f6 {[%clk
0:02:16.5]} 21. Bg4 {[%clk 0:01:42.6]} 21... Bf7 {[%clk 0:02:12.5]} 22. f4
{[%clk 0:01:28.4]} 22... exf4 {[%clk 0:02:09.5]} 23. Nxf4 {[%clk 0:01:27.2]}
23... Bc5+ {[%clk 0:02:09.4]} 24. Kh1 {[%clk 0:01:24.2]} 24... Be3 {[%clk
0:02:09.3]} 25. Nd3 {[%clk 0:01:11.1]} 25... Bxd2 {[%clk 0:02:08.6]} 26. Rxd2
{[%clk 0:01:12]} 26... Rad8 {[%clk 0:02:05.9]} 27. Rf2 {[%clk 0:01:12]} 27...
Kg7 {[%clk 0:02:04.1]} 28. Be2 {[%clk 0:01:02.3]} 28... Ne6 {[%clk 0:02:00.5]}
29. e5 {[%clk 0:01:02.2]} 29... f5 {[%clk 0:01:59.3]} 30. g4 {[%clk 0:01:00]}
30... fxg4 {[%clk 0:01:57.7]} 31. Bxg4 {[%clk 0:00:59.7]} 31... Nd4 {[%clk
0:01:57.5]} 32. Ne4 {[%clk 0:00:57.6]} 32... Bc4 {[%clk 0:01:50.6]} 33. Nf6
{[%clk 0:00:52.9]} 33... Re7 {[%clk 0:01:50.6]} 34. Nf4 {[%clk 0:00:31.1]} 34...
Rxe5 {[%clk 0:01:48.6]} 35. N4h5+ {[%clk 0:00:30.4]} 35... gxh5 {[%clk
0:01:47.5]} 36. Nxh5+ {[%clk 0:00:31.3]} 36... Kg8 {[%clk 0:01:32]} 0-1

[Event "Late-Titled-Tuesday-Blitz-April-02-2024"]
[Site "Chess.com"]
[Date "2024.04.02"]
[Round "2"]
[White "HajiyevKanan"]
[Black "Jospem"]
[Result "0-1"]
[WhiteElo "2615"]
[BlackElo "3037"]
[TimeControl "180+1"]
[EndTime "14:15:28 PDT"]
[Termination "Jospem won by resignation"]

1. d4 {[%clk 0:03:00.9]} 1... Nf6 {[%clk 0:02:59.6]} 2. Nf3 {[%clk 0:03:01.6]}
2... e6 {[%clk 0:02:58.3]} 3. e3 {[%clk 0:03:02]} 3... b6 {[%clk 0:02:58.6]} 4.
Be2 {[%clk 0:03:02.6]} 4... Bb7 {[%clk 0:02:59.2]} 5. O-O {[%clk 0:03:03.3]}
5... g6 {[%clk 0:02:59.7]} 6. c4 {[%clk 0:03:03.8]} 6... Bg7 {[%clk 0:03:00.3]}
7. b3 {[%clk 0:03:04.5]} 7... O-O {[%clk 0:03:01]} 8. Bb2 {[%clk 0:03:05]} 8...
d6 {[%clk 0:03:01.9]} 9. Nc3 {[%clk 0:03:05.1]} 9... Nbd7 {[%clk 0:03:02.8]} 10.
Qd2 {[%clk 0:03:02.1]} 10... a6 {[%clk 0:03:03.1]} 11. Qc2 {[%clk 0:03:00.5]}
11... c5 {[%clk 0:03:02.9]} 12. e4 {[%clk 0:02:58.9]} 12... cxd4 {[%clk
0:03:02.9]} 13. Nxd4 {[%clk 0:02:59.2]} 13... Rc8 {[%clk 0:03:03.7]} 14. Rfd1
{[%clk 0:02:55.6]} 14... Qc7 {[%clk 0:03:01.3]} 15. f3 {[%clk 0:02:51.2]} 15...
Rfe8 {[%clk 0:03:01.4]} 16. Kh1 {[%clk 0:02:51.1]} 16... Qb8 {[%clk 0:03:01.5]}
17. Qd2 {[%clk 0:02:50.4]} 17... Red8 {[%clk 0:02:59.7]} 18. Rac1 {[%clk
0:02:48.2]} 18... h5 {[%clk 0:02:58.9]} 19. Rc2 {[%clk 0:02:35.5]} 19... h4
{[%clk 0:02:58]} 20. Qg5 {[%clk 0:02:16.9]} 20... h3 {[%clk 0:02:55.7]} 21. g3
{[%clk 0:02:17.5]} 21... Rc5 {[%clk 0:02:55.4]} 22. Qe3 {[%clk 0:02:13.7]} 22...
d5 {[%clk 0:02:46.5]} 23. b4 {[%clk 0:02:02.3]} 23... Rcc8 {[%clk 0:02:42.4]}
24. exd5 {[%clk 0:01:28.3]} 24... exd5 {[%clk 0:02:36.8]} 25. cxd5 {[%clk
0:01:25.6]} 25... Re8 {[%clk 0:02:26.9]} 26. Qf2 {[%clk 0:01:23.3]} 26... Nxd5
{[%clk 0:02:25.9]} 27. Nxd5 {[%clk 0:01:12.2]} 27... Rxc2 {[%clk 0:02:26.8]} 28.
Nxc2 {[%clk 0:00:56.7]} 28... Bxb2 {[%clk 0:02:27.7]} 29. Bf1 {[%clk 0:00:44]}
29... Nf6 {[%clk 0:02:17.6]} 30. Nxf6+ {[%clk 0:00:37.1]} 30... Bxf6 {[%clk
0:02:18.5]} 31. Bxh3 {[%clk 0:00:37.5]} 31... Qc7 {[%clk 0:02:19.3]} 32. Bg2
{[%clk 0:00:31.5]} 32... Qc4 {[%clk 0:02:13.5]} 33. Re1 {[%clk 0:00:14.2]} 33...
Rxe1+ {[%clk 0:02:12.3]} 34. Nxe1 {[%clk 0:00:15.1]} 34... Qxb4 {[%clk
0:02:12.6]} 35. f4 {[%clk 0:00:11.1]} 35... Bc8 {[%clk 0:02:04.5]} 36. Nf3
{[%clk 0:00:06]} 36... Be6 {[%clk 0:02:04.1]} 37. h3 {[%clk 0:00:04.7]} 37... b5
{[%clk 0:01:59.9]} 38. Ng5 {[%clk 0:00:05.1]} 38... Bxg5 {[%clk 0:01:58.7]} 39.
fxg5 {[%clk 0:00:06]} 39... Qb1+ {[%clk 0:01:57.5]} 40. Kh2 {[%clk 0:00:04.4]}
40... Qxa2 {[%clk 0:01:58.1]} 41. h4 {[%clk 0:00:04.7]} 41... Qxf2 {[%clk
0:01:58.2]} 0-1

[Event "Late-Titled-Tuesday-Blitz-April-02-2024"]
[Site "Chess.com"]
[Date "2024.04.02"]
[Round "2"]
[White "AGW2016"]
[Black "Byniolus"]
[Result "1-0"]
[WhiteElo "2569"]
[BlackElo "2781"]
[TimeControl "180+1"]
[EndTime "14:15:29 PDT"]
[Termination "AGW2016 won by resignation"]

1. d4 {[%clk 0:03:00.9]} 1... d6 {[%clk 0:02:59.9]} 2. Nf3 {[%clk 0:03:01]} 2...
Bg4 {[%clk 0:02:59.4]} 3. e4 {[%clk 0:02:59.2]} 3... Nf6 {[%clk 0:02:59.4]} 4.
Nc3 {[%clk 0:02:59.5]} 4... e6 {[%clk 0:02:59.2]} 5. Be2 {[%clk 0:03:00.1]} 5...
Be7 {[%clk 0:02:59.3]} 6. O-O {[%clk 0:03:00.6]} 6... O-O {[%clk 0:02:59.5]} 7.
h3 {[%clk 0:03:01.4]} 7... Bh5 {[%clk 0:02:59.8]} 8. d5 {[%clk 0:03:01]} 8... e5
{[%clk 0:02:57.4]} 9. Be3 {[%clk 0:02:58.4]} 9... Bg6 {[%clk 0:02:51.3]} 10. Nd2
{[%clk 0:02:58.5]} 10... Nfd7 {[%clk 0:02:50.9]} 11. Bd3 {[%clk 0:02:55.3]}
11... Bg5 {[%clk 0:02:50.4]} 12. Qe2 {[%clk 0:02:54.9]} 12... Bxe3 {[%clk
0:02:50.3]} 13. Qxe3 {[%clk 0:02:55.8]} 13... a5 {[%clk 0:02:42.6]} 14. a4
{[%clk 0:02:52.8]} 14... Nc5 {[%clk 0:02:40.8]} 15. Nb3 {[%clk 0:02:50.7]} 15...
Nxb3 {[%clk 0:02:31.9]} 16. cxb3 {[%clk 0:02:50.8]} 16... Nd7 {[%clk 0:02:32.8]}
17. Nb5 {[%clk 0:02:47.7]} 17... Nc5 {[%clk 0:02:31.2]} 18. Bc2 {[%clk
0:02:48.4]} 18... f5 {[%clk 0:02:28.6]} 19. exf5 {[%clk 0:02:43.4]} 19... Bxf5
{[%clk 0:02:29.5]} 20. Bxf5 {[%clk 0:02:42.8]} 20... Rxf5 {[%clk 0:02:30.4]} 21.
f4 {[%clk 0:02:40.8]} 21... exf4 {[%clk 0:02:10.6]} 22. Rxf4 {[%clk 0:02:40.8]}
22... Rxd5 {[%clk 0:01:31.1]} 23. Raf1 {[%clk 0:02:39]} 23... c6 {[%clk
0:01:28.2]} 24. Nc3 {[%clk 0:02:37.1]} 24... Re5 {[%clk 0:01:22.9]} 25. Qf3
{[%clk 0:02:31.6]} 25... Re7 {[%clk 0:01:02.2]} 26. Ne2 {[%clk 0:02:28]} 26...
Qe8 {[%clk 0:00:51.7]} 27. Ng3 {[%clk 0:02:28.5]} 27... g6 {[%clk 0:00:44.2]}
28. Kh2 {[%clk 0:02:28.4]} 28... Ne6 {[%clk 0:00:39.7]} 29. Rf6 {[%clk
0:02:27.5]} 29... d5 {[%clk 0:00:30.9]} 30. Qg4 {[%clk 0:02:27.6]} 30... Ng7
{[%clk 0:00:28.3]} 31. h4 {[%clk 0:02:09.8]} 31... Qd7 {[%clk 0:00:28.8]} 32.
Qf3 {[%clk 0:02:07.6]} 32... Qe8 {[%clk 0:00:18.5]} 33. Qg4 {[%clk 0:02:02.1]}
33... Qc8 {[%clk 0:00:15.8]} 34. Qg5 {[%clk 0:01:59.8]} 34... Qd7 {[%clk
0:00:14.4]} 35. h5 {[%clk 0:01:50.6]} 35... gxh5 {[%clk 0:00:08.9]} 36. Nf5
{[%clk 0:01:49]} 36... Qc7+ {[%clk 0:00:06.6]} 37. Kh1 {[%clk 0:01:47.7]} 37...
Rd7 {[%clk 0:00:06.1]} 38. Nh6+ {[%clk 0:01:46.9]} 38... Kh8 {[%clk 0:00:06.6]}
39. Rf8+ {[%clk 0:01:47.5]} 1-0